lending/lending_fUSD_20240731
["ID","MTS","AMOUNT","RATE_DAILY","PERIOD"]
[333750386,1722447038572,-333.725,0.000105,2]
[333750388,1722447038584,-3663.9822,0.000105,2]
[333750390,1722447038596,-659.0,0.000105,2]
[333750391,1722447038636,-106.28856212,0.000105,2]
[333750392,1722447038645,-711.32,0.000105,2]
[333750393,1722447038656,-153.526,0.00010668,2]
[333750394,1722447038666,-684.99395968,0.00010668,2]
[333750398,1722447038702,-685.00604032,0.00010668,2]
[333750400,1722447038712,-1504.27976991,0.000108,2]
[333750402,1722447038722,-150.8736,0.0001089,2]
[333750404,1722447038731,-1007.07603598,0.0001089,2]
[333750406,1722447038743,-1992.92396402,0.0001089,2]
[333750408,1722447038753,-2000.0,0.000109,2]
[333750410,1722447038768,-736.5947,0.000109,2]
[333750412,1722447038778,-1692.1753,0.000109,2]
[333750415,1722447038788,-246.34954245,0.000109,2]
[333750417,1722447038800,-479.93630883,0.000109,2]
[333750473,1722447040842,-273.71414872,0.000109,2]
[333750474,1722447040852,-332.1951,0.000109,2]
[333750475,1722447040862,-11593.4747,0.000109,2]
[333750476,1722447040872,-348.1867419,0.000109,2]
[333750477,1722447040882,-167.7755786,0.000109,2]
[333750478,1722447040891,-835.53077895,0.000109,2]
[333750479,1722447040901,-841.32315428,0.000109,2]
[333750480,1722447040911,-5124.0,0.0001098,2]
[333750481,1722447040921,-550.0,0.0001098,2]
[333750482,1722447040931,-1202.0,0.0001098,2]
[333750483,1722447040942,-1660.0,0.0001098,2]
[333750484,1722447040951,-340.32,0.00010984,2]
[333750485,1722447040961,-153.84,0.0001099,2]
[333750486,1722447040970,-200.0,0.00010993,2]
[333750487,1722447040980,-150.01,0.00010999,2]
[333750488,1722447040990,-1332.30956503,0.00010999,2]
[333750489,1722447041000,-686.0,0.00011,2]
[333750490,1722447041012,-7693.57023252,0.00011,2]
[333750491,1722447041026,-879.67474592,0.00011,2]
[333750492,1722447041038,-593014.83512321,0.00011,2]
[333750493,1722447041048,-1303038.12814646,0.00011,2]
[333750494,1722447041057,-286592.8,0.00011,2]
[333750495,1722447041067,-244634.29744503,0.00011,2]
[333750496,1722447041098,-865.0,0.00011,2]
[333750497,1722447041151,-1596.3,0.00011,2]
[333750498,1722447041163,-37672.09874455,0.00011,2]
[333750499,1722447041251,-6216.70607525,0.00011,2]
[333750500,1722447041266,-359.5574184,0.00011,2]
[333750501,1722447041278,-635.05690392,0.00011,2]
[333750513,1722447043182,-190.85369923,0.000109,2]
[333750514,1722447043192,-14338.12391707,0.00011,2]
[333750515,1722447043202,-400.0,0.00011,2]
[333750516,1722447043211,-23781.49213957,0.00011,2]
[333750517,1722447043311,-10816.48049096,0.00011,2]
[333750518,1722447043324,-661.3131406,0.00011,2]
[333750519,1722447043335,-1796.523,0.00011,2]
[333750520,1722447043347,-1516.6,0.00011,2]
[333750521,1722447043362,-15071.0223875,0.00011,2]
[333750522,1722447043373,-424.56451937,0.00011,2]
[333750523,1722447043413,-300.02,0.00010999,2]
[333750524,1722447043423,-7463.9817081,0.00011,2]
[333750525,1722447043442,-211978.52546884,0.00011,2]
[333750526,1722447043451,-210590.70758952,0.00011,2]
[333750527,1722447043463,-6679.72932,0.00011,2]
[333750528,1722447043474,-317.14831331,0.00011,2]
[333750529,1722447043521,-13346.73340001,0.00011,2]
[333750530,1722447043532,-6357.81175336,0.00011,2]
[333750531,1722447043544,-405.01783176,0.00011,2]
[333750532,1722447043555,-1682.23970874,0.00011,2]
[333750533,1722447043567,-4022.43,0.00011,2]
[333750534,1722447043578,-1661.60734328,0.00011,2]
[333750535,1722447043596,-657.15745888,0.00011,2]
[333750618,1722447046125,227.57161283,7.876e-05,2]
[333750619,1722447046192,-888.20637668,0.00010999,2]
[333750620,1722447046202,-4648.3439079,0.00011,2]
[333750621,1722447047165,-1387.48623675,0.00011,2]
[333750622,1722447047177,-511.36027468,0.00011,2]
[333750623,1722447047189,-4481.46949273,0.00011,2]
[333750624,1722447047205,-2133.67541036,0.00011,2]
[333750625,1722447047219,-1625.95161616,0.00011,2]
[333750626,1722447047235,-1980.82845001,0.00011,2]
[333750627,1722447047247,-697.92298059,0.00011,2]
[333750628,1722447047323,-116281.55427071,0.00011,2]
[333750629,1722447047332,-1205.68239956,0.00011,2]
[333750630,1722447047342,-176818.35670035,0.00011,2]
[333750631,1722447047353,-475.81398569,0.00011,2]
[333750632,1722447047365,-385.8871558,0.00011,2]
[333750633,1722447047376,-1718.57744931,0.00011,2]
[333750634,1722447047388,-2026.77504163,0.00011,2]
[333750635,1722447047400,-1122.59869064,0.00011,2]
[333750636,1722447047433,-1082.61991605,0.00011,2]
[333750637,1722447047446,-500.0,0.00011,2]
[333750639,1722447047461,-1144.25759762,0.00011,2]
[333750641,1722447047472,-2130.66082257,0.00011,2]
[333750677,1722447187255,156.97,0.0001337,30]
[333750737,1722447718501,156.97,0.0001337,30]
[333750751,1722447878720,150.0,0.00027,120]
[333750767,1722448224586,156.97,0.0001337,30]
[333750797,1722448232781,-163.7,8.219e-05,2]
[333750798,1722448232791,-538.42194755,8.219e-05,2]
[333750799,1722448232803,-348.69805245,8.219e-05,2]
[333750800,1722448232814,-758.59968379,9.087e-05,2]
[333750801,1722448232824,-1023.58,9.676e-05,2]
[333750802,1722448232834,-300.0,9.708e-05,2]
[333750803,1722448232845,-22050.29,9.709e-05,2]
[333750804,1722448232854,-385.82,9.729e-05,2]
[333750805,1722448232865,-923.28,9.776e-05,2]
[333750806,1722448232875,-171.97,9.839e-05,2]
[333750807,1722448232884,-1000.0,9.844e-05,2]
[333750808,1722448232893,-150.0,9.888e-05,2]
[333750809,1722448232904,-499.99,9.888e-05,2]
[333750810,1722448232913,-150.0,9.999e-05,2]
[333750811,1722448232922,-1250.0,0.0001,2]
[333750812,1722448232931,-332.8657344,0.0001,2]
[333750813,1722448232940,-200.0,0.0001,2]
[333750814,1722448232950,-3940.65652936,0.00010048,2]
[333750815,1722448232964,-415.22091175,0.00010048,2]
[333750816,1722448233003,-2790.43255889,0.00010048,2]
[333750817,1722448233012,-195.8,0.00010203,2]
[333750818,1722448233022,-151.68,0.00010378,2]
[333750819,1722448233032,-330.53,0.00010378,2]
[333750820,1722448233041,-300.0,0.00010378,2]
[333750821,1722448233051,-303.07,0.00010378,2]
[333750822,1722448233061,-733.68,0.00010378,2]
[333750823,1722448233071,-887.12,0.00010466,2]
[333750824,1722448233081,-420.0,0.00010679,2]
[333750825,1722448233091,-1000.0,0.000107,2]
[333750827,1722448233100,-2151.4055,0.000108,2]
[333750829,1722448233109,-1000.0,0.000108,2]
[333750831,1722448233118,-3989.7176,0.000108,2]
[333750833,1722448233128,-1000.0,0.000108,2]
[333750835,1722448233137,-1887.15478319,0.00010899,2]
[333750836,1722448233146,-1887.1547831,0.00010899,2]
[333750837,1722448233156,-1887.1547831,0.00010899,2]
[333750838,1722448233166,-1887.1547831,0.00010899,2]
[333750839,1722448233175,-1887.1547831,0.00010899,2]
[333750840,1722448233184,-1887.1547831,0.00010899,2]
[333750841,1722448233194,-1887.1547831,0.00010899,2]
[333750842,1722448233203,-1887.1547831,0.00010899,2]
[333750843,1722448233212,-1887.1547831,0.00010899,2]
[333750844,1722448233221,-500.0,0.000109,2]
[333750845,1722448233231,-90733.8595,0.000109,2]
[333750846,1722448233240,-15393.9015,0.000109,2]
[333750847,1722448233249,-20600.2633,0.000109,2]
[333750848,1722448233258,-100000.0,0.000109,2]
[333750849,1722448233268,-1000.0,0.000109,2]
[333750850,1722448233277,-169.01681466,0.000109,2]
[333750851,1722448233286,-883.31023054,0.000109,2]
[333750852,1722448233296,-182.54882854,0.000109,2]
[333750853,1722448233305,-182.54882854,0.000109,2]
[333750854,1722448233315,-1887.1547831,0.000109,2]
[333750855,1722448233324,-1957.36004996,0.000109,2]
[333750856,1722448233334,-500.0,0.00010911,2]
[333750857,1722448233343,-500.0,0.00010912,2]
[333750858,1722448233352,-500.0,0.00010912,2]
[333750859,1722448233362,-762.776,0.0001098,2]
[333750860,1722448233371,-1370.0,0.0001098,2]
[333750861,1722448233380,-150.0,0.0001098,2]
[333750862,1722448233389,-159.6867355,0.00010997,2]
[333750863,1722448233398,-58663.2447664,0.00010998,2]
[333750864,1722448233409,-3217.8849569,0.00010998,2]
[333750865,1722448233418,-4353.6090593,0.00010998,2]
[333750866,1722448233428,-4429.5117382,0.00010998,2]
[333750867,1722448233438,-592.13758446,0.00010999,2]
[333750868,1722448233448,-255.0,0.00010999,2]
[333750869,1722448233457,-562.0,0.00011,2]
[333750870,1722448233467,-105535.15236452,0.00011,2]
[333750871,1722448233480,-938.21279485,0.00011,2]
[333750872,1722448233497,-776.61022031,0.00011,2]
[333750873,1722448233510,-469.02406266,0.00011,2]
[333750874,1722448233643,-3355.30801769,0.00011,2]
[333750875,1722448233655,-4591.446,0.00011,2]
[333750876,1722448233667,-673.12242492,0.00011,2]
[333750884,1722448238376,-416.38,0.00010889,2]
[333750885,1722448238385,-416.38,0.00010889,2]
[333750886,1722448238394,-416.38,0.00010889,2]
[333750887,1722448238404,-416.38,0.0001089,2]
[333750888,1722448238414,-416.38,0.0001089,2]
[333750889,1722448238424,-416.38,0.0001089,2]
[333750890,1722448238434,-416.38,0.0001089,2]
[333750891,1722448238444,-416.38,0.0001089,2]
[333750892,1722448238453,-416.38,0.0001089,2]
[333750893,1722448238462,-416.38,0.0001089,2]
[333750894,1722448238471,-416.38,0.0001089,2]
[333750895,1722448238481,-416.38,0.0001089,2]
[333750896,1722448238490,-4991.34608371,0.00011,2]
[333750897,1722448238505,-1197.7017767,0.00011,2]
[333750898,1722448238526,-8550.96988889,0.00011,2]
[333750899,1722448238569,-416.38,0.0001089,2]
[333750900,1722448238580,-920.72,0.00011,2]
[333750901,1722448238711,-3680.24283908,0.00011,2]
[333750902,1722448238723,-3999.34392147,0.00011,2]
[333750903,1722448238735,-7764.13199422,0.00011,2]
[333750904,1722448238746,-1001.71265023,0.00011,2]
[333750958,1722448240414,-416.38,0.0001089,2]
[333750959,1722448240424,-416.38,0.0001089,2]
[333750960,1722448240434,-416.38,0.0001089,2]
[333750961,1722448240443,-416.38,0.0001089,2]
[333750962,1722448240452,-416.38,0.0001089,2]
[333750963,1722448240461,-416.38,0.0001089,2]
[333750964,1722448240471,-416.38,0.0001089,2]
[333750965,1722448240480,-416.38,0.0001089,2]
[333750966,1722448240491,-592.13758446,0.00010999,2]
[333750967,1722448240506,-1859.11340511,0.00011,2]
[333750968,1722448240518,-451.09100226,0.00011,2]
[333750969,1722448240529,-636.42,0.00011,2]
[333750970,1722448240542,-12317.93100775,0.00011,2]
[333750971,1722448240561,-492.55741441,0.00011,2]
[333750972,1722448240572,-6401.33432499,0.00011,2]
[333750992,1722448241053,-416.38,0.0001089,2]
[333750994,1722448241062,-44.18973873,0.00011,2]
[333750996,1722448241073,-745.83403878,0.00011,2]
[333751003,1722448241139,-3678.01464705,0.00011,2]
[333751006,1722448241150,-315.1724924,0.00011,2]
[333751008,1722448241163,-1829.00326262,0.00011,2]
[333751010,1722448241173,-363.78499998,0.00011,2]
[333751012,1722448241184,-489.87320722,0.00011,2]
[333751014,1722448241195,-496.786,0.00011,2]
[333751016,1722448241207,-558.68054259,0.00011,2]
[333751019,1722448241222,-1032.75,0.00011,2]
[333751021,1722448241234,-336.23325,0.00011,2]
[333751027,1722448241278,-416.38,0.0001089,2]
[333751029,1722448241287,-49454.75696804,0.00011,2]
[333751031,1722448241302,-3254.45282,0.00011,2]
[333751231,1722448243412,-416.38,0.0001089,2]
[333751232,1722448243425,-416.38,0.0001089,2]
[333751234,1722448243435,-416.38,0.0001089,2]
[333751236,1722448243447,-273.9511836,0.0001089,2]
[333751238,1722448243458,-142.4288164,0.0001089,2]
[333751240,1722448243468,-416.38,0.0001089,2]
[333751241,1722448243478,-137.45844324,0.0001089,2]
[333751243,1722448243491,-278.92155676,0.0001089,2]
[333751245,1722448243504,-416.38,0.0001089,2]
[333751247,1722448243513,-2569.70905248,0.00011,2]
[333751249,1722448243524,-305.67881732,0.00011,2]
[333751254,1722448243563,-3021.53377522,0.00011,2]
[333751256,1722448243574,-3006.32640009,0.00011,2]
[333751258,1722448243586,-443.2567971,0.00011,2]
[333751264,1722448243650,-412.55487099,0.00011,2]
[333751545,1722448246796,-2448.9903007,0.000108,2]
[333751546,1722448246837,-51.0096993,0.000108,2]
[333751547,1722448246847,-1603.17397268,0.00011,2]
[333751549,1722448246858,-1598.481575,0.00011,2]
[333751551,1722448246870,-3694.55916163,0.00011,2]
[333751554,1722448246888,-103718.45895339,0.00011,2]
[333751556,1722448246898,-61355.14467882,0.00011,2]
[333751560,1722448246929,-747.40697802,0.00011,2]
[333751562,1722448246941,-505.14,0.00011,2]
[333751564,1722448246952,-292.064,0.00011,2]
[333751567,1722448246963,-856.20926424,0.00011,2]
[333751570,1722448246987,-5012.50142904,0.00011,2]
[333751572,1722448246999,-1663.7,0.00011,2]
[333751575,1722448247010,-1638.75847345,0.00011,2]
[333751577,1722448247028,-873.02264543,0.00011,2]
[333751583,1722448247077,-912.34615092,0.00011,2]
[333751585,1722448247089,-870.89457679,0.00011,2]
[333751682,1722448751218,150.0,7.816e-05,2]
[333751683,1722448751240,0.96988889,7.816e-05,2]
[333751684,1722448792847,156.97,0.0001337,30]
[333751691,1722448942163,2207.73479209,0.00015,30]
[333751693,1722449162406,150.0,7.854e-05,2]
[333751694,1722449162431,150.0,7.854e-05,2]
[333751695,1722449162453,150.0,7.854e-05,2]
[333751696,1722449162474,150.0,7.854e-05,2]
[333751697,1722449162496,150.0,7.854e-05,2]
[333751698,1722449162518,150.0,7.854e-05,2]
[333751699,1722449162539,150.0,7.854e-05,2]
[333751700,1722449162561,150.0,7.854e-05,2]
[333751701,1722449162582,150.0,7.854e-05,2]
[333751702,1722449162606,150.0,7.854e-05,2]
[333751703,1722449162627,150.0,7.854e-05,2]
[333751704,1722449162647,150.0,7.854e-05,2]
[333751705,1722449162668,150.0,7.854e-05,2]
[333751706,1722449162956,150.0,7.854e-05,2]
[333751707,1722449162978,107.95460174,7.854e-05,2]
[333751708,1722449205137,150.0,7.854e-05,2]
[333751709,1722449205160,150.0,7.854e-05,2]
[333751710,1722449205181,150.0,7.854e-05,2]
[333751711,1722449205205,150.0,7.854e-05,2]
[333751712,1722449205277,-150.0,7.854e-05,2]
[333751713,1722449205340,-150.0,7.854e-05,2]
[333751714,1722449205405,-150.0,7.854e-05,2]
[333751715,1722449205504,-150.0,7.854e-05,2]
[333751716,1722449205565,-150.0,7.854e-05,2]
[333751717,1722449205661,-150.0,7.854e-05,2]
[333751718,1722449205748,-150.0,7.854e-05,2]
[333751719,1722449205786,-150.0,7.854e-05,2]
[333751720,1722449205858,-150.0,7.854e-05,2]
[333751721,1722449205923,-150.0,7.854e-05,2]
[333751722,1722449205994,-150.0,7.854e-05,2]
[333751723,1722449206058,-150.0,7.854e-05,2]
[333751724,1722449206175,-150.0,7.854e-05,2]
[333751725,1722449206252,-150.0,7.854e-05,2]
[333751726,1722449206316,-150.0,7.854e-05,2]
[333751727,1722449206391,-150.0,7.854e-05,2]
[333751728,1722449206457,-150.0,7.854e-05,2]
[333751729,1722449206532,-150.0,7.854e-05,2]
[333751730,1722449206876,-150.0,7.854e-05,2]
[333751731,1722449206935,-150.0,7.854e-05,2]
[333751732,1722449206971,-150.0,7.854e-05,2]
[333751733,1722449207010,-150.0,7.854e-05,2]
[333751734,1722449207051,-150.0,7.854e-05,2]
[333751735,1722449207093,-150.0,7.854e-05,2]
[333751736,1722449207131,-150.0,7.854e-05,2]
[333751737,1722449207175,-150.0,7.854e-05,2]
[333751738,1722449207214,-150.0,7.854e-05,2]
[333751739,1722449207317,-150.0,7.854e-05,2]
[333751740,1722449207424,-150.0,7.854e-05,2]
[333751741,1722449207491,-150.0,7.854e-05,2]
[333751742,1722449207525,-150.0,7.854e-05,2]
[333751743,1722449207555,-150.0,7.854e-05,2]
[333751744,1722449207592,-150.0,7.854e-05,2]
[333751745,1722449207633,-150.0,7.854e-05,2]
[333751746,1722449207710,-150.0,7.854e-05,2]
[333751747,1722449207743,-150.0,7.854e-05,2]
[333751748,1722449207785,-150.0,7.854e-05,2]
[333751749,1722449207884,-150.0,7.854e-05,2]
[333751750,1722449207984,-192.04539826,7.854e-05,2]
[333751751,1722449208704,-150.0,7.854e-05,2]
[333751752,1722449208882,-150.0,7.854e-05,2]
[333751753,1722449208973,-150.0,7.854e-05,2]
[333751754,1722449209056,-150.0,7.854e-05,2]
[333751755,1722449209142,-150.0,7.854e-05,2]
[333751756,1722449209339,-150.0,7.854e-05,2]
[333751757,1722449209402,-150.0,7.854e-05,2]
[333751758,1722449209493,-150.0,7.854e-05,2]
[333751768,1722449307854,2207.95460174,0.00025,60]
[333751775,1722449343801,150.0,7.853e-05,2]
[333751776,1722449368628,291.58113767,7.853e-05,2]
[333751777,1722449374283,444.29424297,7.853e-05,2]
[333751778,1722449375370,1632.8835167,7.853e-05,2]
[333751779,1722449378123,250.0,7.853e-05,2]
[333751780,1722449382353,20374.08569997,7.853e-05,2]
[333751781,1722449382779,155.50533946,7.853e-05,2]
[333751782,1722449384642,9263.16857934,7.853e-05,2]
[333751783,1722449386291,227.57161283,7.853e-05,2]
[333751784,1722449388080,1267.80918541,7.853e-05,2]
[333751785,1722449389408,7572.30488088,7.853e-05,2]
[333751786,1722449390886,215.65287238,7.853e-05,2]
[333751787,1722449391470,200.85478346,7.853e-05,2]
[333751788,1722449391901,821.9954386,7.853e-05,2]
[333751789,1722449392522,883.68962078,7.853e-05,2]
[333751790,1722449400021,156.97,0.0001337,30]
[333751792,1722449407492,883.68962078,7.853e-05,2]
[333751793,1722449417970,1267.80918541,7.853e-05,2]
[333751806,1722449432393,-1183.68,8.219e-05,2]
[333751807,1722449432403,-227.57161283,9.519e-05,2]
[333751808,1722449432412,-565.17964346,9.519e-05,2]
[333751809,1722449432421,-212.40944371,9.519e-05,2]
[333751810,1722449432684,-622.69522806,9.519e-05,2]
[333751811,1722449432802,-8428.06390757,9.519e-05,2]
[333751812,1722449432812,-1000.0,9.814e-05,2]
[333751813,1722449432821,-16046.49,9.837e-05,2]
[333751814,1722449432831,-150.0,9.888e-05,2]
[333751815,1722449432840,-150.0,9.888e-05,2]
[333751816,1722449432850,-360.83,9.957e-05,2]
[333751817,1722449432859,-150.0,0.00010162,2]
[333751818,1722449432869,-150.0,0.00010437,2]
[333751819,1722449432886,-1183.68,0.00010471,2]
[333751820,1722449432898,-195.84,0.00010478,2]
[333751821,1722449432909,-489.81,0.00010478,2]
[333751822,1722449432920,-711.98,0.00010478,2]
[333751823,1722449432930,-425.8,0.00010578,2]
[333751824,1722449432939,-150.0,0.00010578,2]
[333751825,1722449432949,-530.19,0.00010578,2]
[333751826,1722449432959,-425.8,0.00010578,2]
[333751827,1722449432970,-150.0,0.00010578,2]
[333751828,1722449432979,-150.0,0.00010578,2]
[333751829,1722449432989,-838.24,0.00010686,2]
[333751830,1722449432998,-150.0,0.00010712,2]
[333751831,1722449433008,-15694.15985397,0.00010781,2]
[333751832,1722449433020,-21077.73030177,0.00010781,2]
[333751833,1722449433032,-1344.91957557,0.00010781,2]
[333751834,1722449433078,-67130.70885863,0.00010781,2]
[333751846,1722449437976,-259.24733578,9.519e-05,2]
[333751852,1722449437990,-2638.81677734,9.519e-05,2]
[333751855,1722449438005,-2539.60411388,9.519e-05,2]
[333751858,1722449438016,-1513.11989654,0.00010781,2]
[333751860,1722449438029,-816.07128584,0.00010781,2]
[333751862,1722449438041,-569.78816292,0.00010781,2]
[333751865,1722449438054,-14500.00000031,0.00010781,2]
[333751867,1722449438068,-613.21,0.00010781,2]
[333751869,1722449438080,-1090.57698879,0.00010781,2]
[333751871,1722449438092,-2472.92464761,0.00010781,2]
[333751872,1722449438103,-31562.41963906,0.00010781,2]
[333751873,1722449438115,-34639.48225279,0.00010781,2]
[333751874,1722449438130,-17998.8885362,0.00010781,2]
[333751875,1722449438140,-661.47715933,0.0001079,2]
[333751876,1722449438151,-23.92284067,0.0001079,2]
[333751877,1722449438161,-440.77443649,0.0001079,2]
[333751879,1722449438173,-406.46916604,0.0001079,2]
[333751880,1722449438185,-889.92097399,0.0001079,2]
[333751882,1722449438197,-1718.43252348,0.0001079,2]
[333751884,1722449438206,-1017.10656353,0.0001079,2]
[333751920,1722449438813,-111.04123647,0.0001079,2]
[333751921,1722449438824,-500.0,0.00010798,2]
[333751922,1722449438833,-42.63777614,0.000108,2]
[333751933,1722449439794,-526.04256656,9.519e-05,2]
[333751934,1722449439803,-449.44352386,0.000108,2]
[333751935,1722449439812,-500.0,0.00010806,2]
[333751936,1722449439822,-500.0,0.00010815,2]
[333751937,1722449439831,-500.0,0.00010824,2]
[333751938,1722449439841,-500.0,0.00010833,2]
[333751939,1722449439850,-500.0,0.00010842,2]
[333751940,1722449439859,-500.0,0.0001085,2]
[333751941,1722449439868,-500.0,0.00010859,2]
[333751942,1722449439881,-500.0,0.00010868,2]
[333751943,1722449439893,-500.0,0.00010877,2]
[333751944,1722449439902,-500.0,0.00010886,2]
[333751945,1722449439911,-500.0,0.00010894,2]
[333751946,1722449439920,-1468.71974499,0.00010899,2]
[333751947,1722449439929,-1468.71974499,0.00010899,2]
[333751948,1722449439940,-1468.71974499,0.00010899,2]
[333751949,1722449439949,-544.81122641,0.00010899,2]
[333751950,1722449439961,-539.41417747,0.00010899,2]
[333751951,1722449439973,-384.49434111,0.00010899,2]
[333751952,1722449439982,-860.19013559,0.00010899,2]
[333751953,1722449439996,-608.5296094,0.00010899,2]
[333751954,1722449440005,-1012.93876053,0.000109,2]
[333752297,1722449443404,-20944.24845947,0.000109,2]
[333752299,1722449443414,-1000.0,0.000109,2]
[333752301,1722449443423,-694.7866,0.000109,2]
[333752303,1722449443433,-6312.0066,0.000109,2]
[333752305,1722449443442,-1468.71974499,0.000109,2]
[333752307,1722449443451,-338.0336293,0.000109,2]
[333752309,1722449443460,-871.29890599,0.000109,2]
[333752311,1722449443470,-177.34217462,0.000109,2]
[333752313,1722449443479,-1976.21596313,0.000109,2]
[333752315,1722449443488,-785.90367586,0.000109,2]
[333752317,1722449443498,-500.0,0.00010903,2]
[333752319,1722449443508,-500.0,0.00010911,2]
[333752321,1722449443518,-500.0,0.00010912,2]
[333752323,1722449443527,-500.0,0.00010912,2]
[333752325,1722449443537,-500.0,0.00010921,2]
[333752327,1722449443546,-500.0,0.0001093,2]
[333752329,1722449443556,-500.0,0.00010938,2]
[333752331,1722449443565,-500.0,0.00010947,2]
[333752333,1722449443574,-500.0,0.00010956,2]
[333752335,1722449443583,-200.0,0.00010959,2]
[333752337,1722449443593,-200.0,0.00010959,2]
[333752339,1722449443602,-799.63,0.00010959,2]
[333752341,1722449443613,-3369.85,0.00010959,2]
[333752343,1722449443623,-150.0,0.00010959,2]
[333752345,1722449443637,-2867.04,0.00010959,2]
[333752347,1722449443647,-250.0,0.00010959,2]
[333752349,1722449443658,-226.1,0.00010959,2]
[333752351,1722449443669,-188.42,0.00010959,2]
[333752353,1722449443679,-157.02,0.00010959,2]
[333752355,1722449443688,-785.1,0.00010959,2]
[333752357,1722449443698,-500.0,0.00010965,2]
[333752359,1722449443707,-500.0,0.00010974,2]
[333752361,1722449443717,-1370.0,0.0001098,2]
[333752362,1722449443727,-500.0,0.00010982,2]
[333752363,1722449443737,-267.04223677,0.00010986,2]
[333752364,1722449443746,-234.0101415,0.00010986,2]
[333752365,1722449443756,-153.21,0.0001099,2]
[333752366,1722449443765,-500.0,0.00010991,2]
[333752367,1722449443774,-5216.85075243,0.00010995,2]
[333752368,1722449443783,-930.71217096,0.00010997,2]
[333752369,1722449443793,-5739.6789525,0.00010998,2]
[333752370,1722449443803,-7009.0090713,0.00010998,2]
[333752372,1722449443813,-9494.1070319,0.00010998,2]
[333752374,1722449443823,-93553.3639682,0.00010998,2]
[333752376,1722449443832,-296.06879223,0.00010999,2]
[333752378,1722449443842,-537.0,0.00011,2]
[333752380,1722449443852,-108377.61552541,0.00011,2]
[333752382,1722449443862,-227075.94881527,0.00011,2]
[333752388,1722449443925,-3016.51889904,0.00011,2]
[333752391,1722449443936,-1056.58110471,0.00011,2]
[333752393,1722449443948,-472.14448721,0.00011,2]
[333752395,1722449443959,-33400.0,0.00011,2]
[333752496,1722449445623,-1214.69466643,0.00011,2]
[333752499,1722449445659,-6097.62025568,0.00011,2]
[333752503,1722449445710,-2644.0848099,0.00011,2]
[333752508,1722449445771,-362.2774596,0.00011,2]
[333752510,1722449445787,-699.74976183,0.00011,2]
[333752600,1722449938687,-182.57,8.134e-05,2]
[333752601,1722449987880,216.9,8.134e-05,2]
[333752602,1722450357326,2820.51781791,6.94e-05,2]
[333752605,1722450426856,227.57161283,6.94e-05,2]
[333752606,1722450441078,1267.80918541,6.94e-05,2]
[333752607,1722450451229,20374.08569997,6.94e-05,2]
[333752608,1722450456269,7529.63851578,6.94e-05,2]
[333752609,1722450477229,762.0,0.00027,120]
[333752619,1722450526871,227.57161283,6.94e-05,2]
[333752628,1722450604043,576.63135535,6.94e-05,2]
[333752630,1722450615365,14057.48649383,6.94e-05,2]
[333752631,1722450630988,227.57161283,6.94e-05,2]
[333752646,1722450632397,-585.0,8.133e-05,2]
[333752647,1722450632407,-103.43412,8.219e-05,2]
[333752648,1722450632506,-65.67588,8.219e-05,2]
[333752649,1722450632515,-1115.55,8.219e-05,2]
[333752650,1722450632525,-800.0,9.752e-05,2]
[333752651,1722450632535,-300.0,9.785e-05,2]
[333752652,1722450632545,-14664.84564546,9.786e-05,2]
[333752653,1722450632556,-1211.93463373,9.786e-05,2]
[333752654,1722450632568,-5357.34972081,9.786e-05,2]
[333752655,1722450632577,-200.0,0.0001002,2]
[333752656,1722450632586,-168.83,0.00010025,2]
[333752657,1722450632596,-250.0,0.00010039,2]
[333752658,1722450632605,-185.56,0.00010104,2]
[333752659,1722450632614,-839.9,0.00010241,2]
[333752660,1722450632623,-150.0,0.00010246,2]